bitfinex/quotes_ETHUSD_20250715
["timestamp","ask_amount","ask_price","bid_price","bid_amount"]
[1752543777616,3.34207227,2992.2,2991.6,3.3426758]
[1752543777843,8.51514898,2992.1,2991.5,3.34275818]
[1752543778080,0.60059271,2992.2,2991.6,0.25163966]
[1752543778221,3.34246535,2991.9,2991.6,0.25163966]
[1752543778424,8.51552694,2991.8,2991.2,8.10310347]
[1752543778620,5.173,2991.8,2991.2,4.76]
[1752543779021,5.173,2991.8,2991.3,3.34296619]
[1752543779237,4.17423974,2992.1,2991.5,3.34271194]
[1752543779238,0.8321,2992.1,2991.5,3.34271194]
[1752543779525,5.173,2992.0,2991.3,1.14862032]
[1752543779724,3.34236003,2991.9,2991.3,3.5917331]
[1752543780258,5.173,2992.0,2991.4,3.34291636]
[1752543780465,8.51530998,2992.0,2991.4,3.34291636]
[1752543780631,0.8321,2992.1,2991.8,3.34239045]
[1752543780819,5.173,2992.0,2991.6,4.16825276]
[1752543781224,5.173,2992.0,2991.6,0.8256]
[1752543781439,5.173,2992.0,2991.3,0.79523028]
[1752543781689,5.173,2992.0,2991.7,3.34251772]
[1752543782372,3.34176445,2992.5,2991.9,3.34233482]
[1752543782599,5.173,2992.4,2991.9,3.34233482]
[1752543782812,0.7794,2992.6,2991.8,5.55522469]
[1752543783015,8.017,2992.8,2992.3,3.34184119]
[1752543783205,5.173,2992.7,2992.3,3.3419109]
[1752543783406,5.173,2992.7,2992.4,3.34176656]
[1752543783642,5.173,2992.6,2992.4,3.34176656]
[1752543783839,5.173,2992.6,2992.5,3.34168755]
[1752543784041,8.017,2992.8,2992.4,3.34174519]
[1752543784222,5.173,2992.7,2992.4,3.34174519]
[1752543784735,5.173,2992.7,2992.5,3.3416706]
[1752543784930,5.173,2992.6,2992.5,3.3416706]
[1752543785342,5.173,2992.6,2992.4,3.34175411]
[1752543785500,5.173,2992.5,2992.4,3.34175411]
[1752543787239,5.173,2992.5,2992.4,3.50815411]
[1752543789473,4.12066043,2992.9,2992.4,3.50815411]
[1752543789633,5.173,2992.8,2992.4,3.50815411]
[1752543789834,5.173,2992.8,2992.5,3.34168674]
[1752543790034,5.173,2992.7,2992.5,3.34168674]
[1752543790738,1.54221066,2992.9,2992.6,3.34157588]
[1752543790938,5.173,2992.8,2992.6,3.34157588]
[1752543792073,5.173,2992.8,2992.4,0.1664]
[1752543792375,5.173,2992.8,2992.4,3.50817039]
[1752543792678,0.7794,2992.9,2992.5,3.34165332]
[1752543792880,0.7794,2992.9,2992.4,0.1664]
[1752543793178,1e-08,2993.0,2992.9,3.34124093]
[1752543793334,5.17300001,2993.0,2992.9,3.34124093]
[1752543793876,1e-08,2993.0,2992.8,0.1664]
[1752543794036,5.173,2992.9,2992.8,3.50775257]
[1752543794236,1e-08,2993.0,2992.9,3.34124093]
[1752543794430,5.17300001,2993.0,2992.9,3.59790987]
[1752543794673,5.17300001,2993.0,2992.9,0.25666894]
[1752543794974,1e-08,2993.0,2992.8,3.50771364]
[1752543795165,5.172,2992.9,2992.8,3.50771364]
[1752543795473,5.072,2992.9,2992.8,3.50771364]
[1752543795637,5.072,2992.9,2992.8,0.1664]
[1752543796037,5.072,2992.9,2992.8,3.50775257]
[1752543796471,1e-08,2993.0,2992.8,3.50775257]
[1752543796704,5.172,2992.9,2992.8,3.50775257]
[1752543798252,5.172,2992.9,2992.8,0.1664]
[1752543798681,1e-08,2993.0,2992.8,0.1664]
[1752543798895,5.172,2992.9,2992.8,3.50775257]
[1752543799193,5.172,2992.9,2992.8,3.75382506]
[1752543799365,5.172,2992.9,2992.8,0.41247249]
[1752543799696,1e-08,2993.0,2992.9,4.16924093]
[1752543800189,5.17200001,2993.0,2992.9,4.33564093]
[1752543800404,1e-08,2993.0,2992.9,4.33564093]
[1752543800602,5.17200001,2993.0,2992.9,4.33564093]
[1752543802907,5.17200001,2993.0,2992.9,0.1664]
[1752543803209,5.17200001,2993.0,2992.8,0.24607249]
[1752543803412,5.17200001,2993.0,2992.7,3.50781076]
[1752543803985,5.171,2992.9,2992.7,0.1664]
[1752543804369,5.171,2992.9,2992.7,3.50785408]
[1752543805083,1e-08,2993.0,2992.7,0.41720662]
[1752543805269,5.171,2992.9,2992.8,3.34129623]
[1752543805808,5.171,2992.9,2992.7,3.75863921]
[1752543806309,5.171,2992.9,2992.8,3.34135257]
[1752543806616,5.171,2992.9,2992.7,3.75862637]
[1752543806911,5.171,2992.9,2992.7,0.41720662]
[1752543807273,5.171,2992.8,2992.7,0.41720662]
[1752543807773,1e-08,2993.0,2992.7,0.41720662]
[1752543807973,5.171,2992.9,2992.8,3.34129562]
[1752543808192,5.171,2992.9,2992.8,3.50769562]
[1752543808408,5.171,2992.9,2992.8,0.1664]
[1752543808609,5.171,2992.9,2992.8,3.50775257]
[1752543808914,5.171,2992.9,2992.8,0.1664]
[1752543809224,5.171,2992.9,2992.8,3.50775257]
[1752543809707,1e-08,2993.0,2992.9,3.34124093]
[1752543810007,5.17000001,2993.0,2992.9,3.34124093]
[1752543810406,1e-08,2993.0,2992.9,3.34124093]
[1752543810812,5.17000001,2993.0,2992.9,3.34124093]
[1752543811106,1e-08,2993.0,2992.9,3.34124093]
[1752543811314,5.17000001,2993.0,2992.9,5.16540977]
[1752543811510,1e-08,2993.0,2992.9,5.16540977]
[1752543811734,5.17000001,2993.0,2992.9,5.16540977]
[1752543811914,1e-08,2993.0,2992.9,5.16540977]
[1752543812115,0.04,2993.9,2993.8,3.34023648]
[1752543812273,0.04,2993.9,2993.8,4.82069679]
[1752543812634,0.04,2993.9,2993.8,15.37069679]
[1752543812833,0.04,2993.9,2993.8,15.33729443]
[1752543813245,0.04,2993.9,2993.8,14.78729443]
[1752543814867,0.04,2993.9,2993.8,0.66805795]
[1752543815067,5.21,2993.9,2993.4,3.34062409]
[1752543815228,8.55017468,2993.9,2993.4,3.34062409]
[1752543815414,5.21,2993.9,2993.5,3.34055456]
[1752543815613,5.17,2993.8,2993.4,3.34063547]
[1752543815806,5.17,2993.8,2993.5,3.34056214]
[1752543816247,5.17,2993.8,2993.3,10.0]
[1752543816544,5.17,2993.8,2993.5,3.34051238]
[1752543816765,5.17,2993.8,2993.5,3.34052891]
[1752543817256,5.169,2993.7,2993.6,3.37386423]
[1752543817450,5.169,2993.7,2993.6,3.34045964]
[1752543817631,0.04,2993.9,2993.6,3.34045964]
[1752543817632,0.04,2993.9,2993.8,13.34023648]
[1752543822244,0.04,2993.9,2993.8,13.50663648]
[1752543822424,0.04,2993.9,2993.8,14.05663648]
[1752543822629,0.04,2993.9,2993.8,15.93057425]
[1752543823314,0.04,2993.9,2993.8,15.38057425]
[1752543823750,0.04,2993.9,2993.8,5.38057425]
[1752543824058,0.042,2993.9,2993.8,3.50663648]
[1752543826847,3.54546734,2994.9,2994.7,3.33916474]
[1752543826848,0.04,2994.9,2994.7,3.33916474]
[1752543827244,0.04,2994.9,2994.8,3.50552114]
[1752543830580,0.04,2994.9,2994.8,3.75380331]
[1752543830786,0.04,2994.9,2994.8,0.1664]
[1752543830997,8.4977533,2995.2,2994.5,3.3393756]
[1752543831290,0.59556,2995.1,2994.7,0.1664]
[1752543831637,5.166,2995.1,2994.8,3.33903732]
[1752543831982,5.166,2995.1,2994.7,3.50557729]
[1752543832196,5.166,2995.1,2994.7,0.1664]
[1752543832333,5.166,2995.1,2994.7,3.50552636]
[1752543832533,9.45076285,2995.1,2994.7,0.1664]
[1752543832834,0.7514,2995.0,2994.7,0.1664]
[1752543833285,0.7514,2995.0,2994.7,3.50562142]
[1752543833772,0.1664,2995.2,2994.8,0.7763]
[1752543833972,0.8318,2996.3,2995.1,0.7763]
[1752543834157,0.8318,2996.3,2995.8,3.33800654]
[1752543834333,0.8318,2996.3,2995.4,3.33845229]
[1752543834670,4.16932075,2996.3,2995.7,3.33810803]
[1752543834967,5.165,2996.2,2995.8,3.33800654]
[1752543835701,5.165,2996.2,2995.7,3.33807586]
[1752543835914,5.165,2996.2,2995.4,3.33837269]
[1752543836213,5.165,2996.2,2995.5,3.33827398]
[1752543836412,5.165,2996.2,2995.4,3.33843484]
[1752543836712,3.33759177,2996.2,2995.6,3.33816952]
[1752543836919,0.8318,2996.3,2995.4,5.165]
[1752543837056,0.8133,2996.7,2995.8,3.33800654]
[1752543837254,5.9783,2996.7,2995.8,3.33800654]
[1752543837651,5.9783,2996.7,2995.3,1.05911864]
[1752543837652,0.8133,2996.0,2995.3,1.05911864]
[1752543837951,0.8133,2996.0,2995.5,3.33827873]
[1752543838486,0.8133,2996.0,2995.6,3.33818634]
[1752543838814,0.8133,2996.0,2995.6,5.176]
[1752543838951,0.8133,2996.0,2995.6,5.175]
[1752543839152,3.37792747,2995.9,2995.3,4.14738483]
[1752543839362,3.79702513,2995.9,2995.4,5.175]
[1752543839807,0.45909766,2995.9,2995.4,8.51245066]
[1752543839967,0.04,2995.9,2995.6,3.33813958]
[1752543840161,0.04,2995.9,2995.8,3.33800654]
[1752543840582,0.04,2995.9,2995.8,4.11900654]
[1752543841521,1e-08,2995.9,2995.8,4.84675708]
[1752543841850,1e-08,2996.9,2996.3,0.781]
[1752543841972,1e-08,2996.9,2996.5,3.33720559]
[1752543842295,1e-08,2996.9,2996.7,3.33699409]
[1752543842502,1e-08,2996.9,2996.7,5.188]
[1752543842692,4.09551626,2996.8,2996.0,4.11876403]
[1752543843001,4.09550602,2996.8,2996.2,3.33752656]
[1752543843203,0.7586,2996.8,2996.3,3.33735615]
[1752543843517,0.7586,2996.8,2996.4,5.187]
[1752543843679,3.33752392,2996.3,2995.7,3.33804753]
[1752543843867,3.33738559,2996.4,2996.1,0.1664]
[1752543844063,3.33726217,2996.5,2996.1,0.1664]
[1752543844269,4.26860212,2996.4,2995.9,0.1664]
[1752543844593,0.9312,2996.4,2995.9,0.1664]
[1752543844793,0.9312,2996.4,2995.9,3.50423114]
[1752543844989,0.7648,2996.4,2996.1,3.33760538]
[1752543845209,3.33689743,2996.8,2996.1,3.33760538]
[1752543845210,0.7648,2996.8,2996.2,0.0333756]
[1752543845502,4.10177703,2996.8,2996.3,0.1664]
[1752543845802,4.10177703,2996.8,2996.5,0.1664]
[1752543845803,0.7648,2996.8,2996.5,0.1664]
[1752543845975,4.10170023,2996.8,2996.1,5.186]
[1752543846188,0.7714,2996.6,2995.5,0.781]
[1752543846511,3.50427326,2996.0,2995.5,0.1664]
[1752543846897,3.33820113,2995.7,2995.5,0.1664]
[1752543847101,3.3382294,2995.6,2995.4,0.001]
[1752543847296,3.33805379,2995.8,2995.4,0.001]
[1752543847604,0.1664,2995.9,2995.4,0.001]
[1752543847901,4.10908754,2996.1,2995.5,3.33823241]
[1752543848203,4.10908754,2996.1,2995.6,0.1664]
[1752543848406,0.7714,2996.1,2995.6,0.1664]
[1752543848607,1.38408,2996.1,2995.6,0.1664]
[1752543848792,4.72182766,2996.1,2995.6,0.1664]
[1752543849472,3.33780498,2996.0,2995.6,0.1664]
[1752543849667,3.33780498,2996.0,2995.4,3.3394029]
[1752543849867,4.72179457,2996.1,2995.5,3.33827925]
[1752543850176,3.80998547,2996.0,2995.4,3.33940696]
[1752543850381,0.47217946,2996.0,2995.6,3.33822291]
[1752543850633,3.80999001,2996.0,2995.5,3.33827075]
[1752543850778,3.80999001,2996.0,2995.4,3.33940155]
[1752543850979,0.519407,2995.9,2995.4,0.001]
[1752543851797,0.7939,2995.7,2995.4,0.001]
[1752543852004,3.33834084,2995.5,2995.4,0.001]
[1752543852405,0.7939,2995.5,2995.4,0.001]
[1752543852613,4.13224084,2995.5,2995.4,0.001]
[1752543852915,4.87927717,2995.5,2995.4,0.001]
[1752543855013,1.54093633,2995.5,2995.4,0.001]
[1752543855307,4.13224084,2995.5,2995.4,0.001]
[1752543856104,14.13224084,2995.5,2995.4,0.001]
[1752543858242,14.13224084,2995.5,2995.4,1e-08]
[1752543858537,19.86324084,2995.5,2995.4,1e-08]
[1752543860233,23.38224084,2995.5,2995.4,1e-08]
[1752543860644,23.38224084,2995.5,2994.2,0.001]
[1752543860645,4.15407872,2994.3,2994.2,0.001]
[1752543860801,9.33307872,2994.3,2994.2,0.001]
[1752543863623,0.8144,2994.3,2994.2,0.001]
[1752543863938,9.33107872,2994.3,2994.2,0.001]
[1752543864801,19.33107872,2994.3,2994.2,0.001]
[1752543866032,9.32807872,2994.3,2994.2,0.001]
[1752543866656,5.175,2994.3,2994.2,0.001]
[1752543869033,8.51467872,2994.3,2994.2,0.001]
[1752543872360,0.1664,2994.4,2994.2,0.001]
[1752543872521,5.17,2994.3,2994.2,0.001]
[1752543874456,5.168,2994.3,2994.2,0.001]
[1752543875448,0.1664,2994.4,2994.2,3.34079026]
[1752543875646,3.33897902,2995.0,2994.4,3.33949109]
[1752543875855,0.1664,2994.5,2994.4,3.33949109]
[1752543876052,5.3344,2994.5,2994.4,3.33949109]
[1752543876375,1.1351,2995.3,2994.3,0.8293]
[1752543876566,0.1664,2994.9,2994.7,3.33917536]
[1752543876883,5.168,2994.8,2994.7,3.33917536]
[1752543877870,0.1664,2994.9,2994.6,3.33930984]
[1752543878171,5.168,2994.8,2994.6,3.33930984]
[1752543878324,5.168,2994.8,2994.4,3.50591018]
[1752543878739,3.50542703,2994.9,2994.5,3.33944918]
[1752543878740,0.1664,2994.9,2994.5,3.33944918]
[1752543878927,5.168,2994.8,2994.4,3.50591175]
[1752543879158,5.168,2994.7,2994.4,3.50591175]
[1752543879365,5.168,2994.7,2994.4,0.1664]
[1752543879668,5.168,2994.7,2994.4,3.50593299]
[1752543879847,5.168,2994.7,2994.4,0.1664]
[1752543880232,8.50723795,2994.7,2994.4,0.1664]
[1752543880460,5.168,2994.7,2994.4,0.1664]
[1752543880658,5.168,2994.7,2994.4,3.50595717]
[1752543880871,5.168,2994.7,2994.4,0.1664]
[1752543881073,5.168,2994.7,2994.4,3.50590677]
[1752543882136,5.168,2994.7,2994.4,0.1664]
[1752543884636,5.168,2994.7,2994.4,3.50596211]
[1752543885378,5.168,2994.7,2994.4,0.1664]
[1752543885587,5.168,2994.7,2994.6,3.33934415]
[1752543885879,5.167,2994.7,2994.6,3.33934415]
[1752543887272,9.0395738,2994.7,2994.4,0.1664]
[1752543887577,5.70034,2994.7,2994.4,0.1664]
[1752543887735,5.167,2994.7,2994.4,0.1664]
[1752543888140,0.7747,2995.4,2994.8,3.33912114]
[1752543888370,5.3334,2995.3,2994.9,3.33900964]
[1752543888569,5.3334,2995.3,2994.8,0.1664]
[1752543888570,8.67197282,2995.3,2994.8,0.1664]
[1752543888824,3.33867521,2995.2,2994.8,0.1664]
[1752543889314,3.3386839,2995.2,2994.8,0.1664]
[1752543889512,6.27826728,2995.3,2994.8,0.1664]
[1752543889710,0.1664,2994.9,2994.4,3.50587507]
[1752543889917,8.50621515,2994.8,2994.4,0.1664]
[1752543890212,5.167,2994.8,2994.4,0.1664]
[1752543890418,6.03994675,2994.8,2994.4,0.1664]
[1752543890574,9.37912757,2994.8,2994.4,0.1664]
[1752543890915,3.33924297,2994.7,2994.4,0.1664]
[1752543891611,3.33944009,2994.6,2994.2,0.756]
[1752543891814,5.167,2994.5,2994.2,0.9224]
[1752543893293,5.167,2994.5,2994.2,0.001]
[1752543893294,4.19026444,2994.4,2994.2,0.001]
[1752543893498,5.167,2994.5,2994.2,0.001]
[1752543894407,8.50645907,2994.5,2994.2,0.001]
[1752543894605,3.33960484,2994.4,2994.2,0.001]
[1752543894917,5.167,2994.3,2994.2,0.001]
[1752543895118,8.50667872,2994.3,2994.2,0.001]
[1752543895615,10.48865112,2994.3,2994.2,0.001]
[1752543898026,20.48865112,2994.3,2994.2,0.001]
[1752543898930,0.1664,2994.4,2994.2,0.001]
[1752543899115,8.50667872,2994.3,2994.2,0.001]
[1752543899318,0.1664,2994.4,2994.2,0.001]
[1752543899521,0.002,2995.4,2994.5,0.8249]
[1752543899706,3.34045468,2995.4,2994.9,3.33894037]
[1752543900030,3.34045468,2995.4,2994.2,0.001]
[1752543900031,0.002,2995.4,2995.2,0.8249]
[1752543900425,0.002,2995.4,2995.3,3.33856374]
[1752543901251,0.002,2995.4,2995.2,0.8249]
[1752543901460,0.002,2995.4,2995.3,3.33856374]
[1752543902325,0.002,2995.4,2995.2,0.8249]
[1752543902844,0.002,2995.4,2995.3,3.33856374]
[1752543903148,0.002,2995.4,2995.2,0.8249]
[1752543903454,0.5191,2995.4,2994.3,10.7675]
[1752543903632,3.34049953,2995.4,2994.8,3.33908291]
[1752543903843,3.33858419,2995.3,2994.7,3.33918185]
[1752543904042,5.166,2995.2,2994.7,3.33922716]
[1752543904209,0.002,2995.4,2994.8,0.80089121]
[1752543904410,0.002,2995.4,2995.2,3.33859139]
[1752543904649,0.002,2995.4,2995.3,3.33856374]
[1752543904949,0.002,2995.4,2995.3,4.10606374]
[1752543905318,0.002,2995.4,2995.3,4.13944937]
[1752543905528,0.002,2995.4,2995.3,14.52323047]
[1752543905746,0.002,2995.4,2995.3,14.48984484]
[1752543906458,0.002,2995.4,2995.3,29.24984484]
[1752543906607,0.002,2995.5,2995.4,4.67365229]
[1752543906811,3.33664009,2997.1,2995.6,0.55]
[1752543907016,3.33649835,2997.2,2996.6,3.3371064]
[1752543907230,5.167,2997.3,2996.8,3.33689268]
[1752543907429,0.04,2997.9,2996.8,3.33689268]
[1752543907430,3.33579605,2997.8,2996.8,3.33689268]
[1752543907640,5.171,2997.6,2996.8,3.3702616]
[1752543907846,5.171,2997.6,2996.8,3.33689268]
[1752543908052,5.171,2997.6,2996.8,4.11320364]
[1752543908240,5.171,2997.6,2996.8,4.07983472]
[1752543908768,8.51007143,2997.6,2996.8,4.07983472]
[1752543909066,5.174,2997.6,2996.8,4.11320364]
[1752543909421,0.1664,2997.8,2996.8,4.27960364]
[1752543909635,5.212,2997.9,2996.8,0.90934204]
[1752543909852,3.33631591,2997.4,2996.8,0.1664]
[1752543910035,3.3363665,2997.3,2996.8,0.1664]
[1752543910234,0.9836,2997.4,2996.8,0.1664]
[1752543910423,3.33657066,2997.1,2996.8,0.1664]
[1752543910656,3.33651965,2997.2,2996.8,0.1664]
[1752543910891,10.04,2997.9,2996.8,3.5366616]
[1752543910892,5.174,2997.6,2996.8,3.5366616]
[1752543911163,3.33619205,2997.5,2996.8,3.50329268]
[1752543911677,4.13717147,2997.3,2996.0,0.8225]
[1752543911875,0.8008,2996.8,2995.6,0.8225]
[1752543912075,0.8008,2996.8,2994.6,5.182]
[1752543912076,0.8008,2996.7,2995.1,0.24888915]
[1752543912277,3.33736033,2996.4,2995.5,3.33827555]
[1752543912504,3.33768207,2996.1,2995.4,3.33845229]
[1752543912679,8.52164124,2996.2,2995.1,3.33870823]
[1752543912851,3.33804386,2995.8,2995.2,3.67250366]
[1752543913196,3.33830892,2995.6,2995.2,0.33387082]
[1752543913481,3.33818121,2995.7,2995.1,3.33876479]
[1752543913682,3.33776265,2996.1,2995.5,3.3383015]
[1752543913985,5.184,2996.2,2995.7,3.33809803]
[1752543914148,10.61618369,2997.6,2995.5,4.13794084]
[1752543914149,0.7524,2996.7,2995.8,0.03338006]
[1752543914480,3.33695235,2996.8,2996.1,3.33758459]
[1752543914682,3.33695235,2996.8,2996.2,4.42631541]
[1752543914984,3.33693518,2996.8,2996.2,1.08875846]
[1752543915157,0.00200001,2996.9,2996.4,3.33726867]
[1752543915365,0.00200001,2996.9,2996.4,3.33726216]
[1752543915746,0.00200001,2996.9,2996.3,3.37079128]
[1752543916089,0.00200001,2996.9,2996.3,3.33741679]
[1752543916245,0.00200001,2996.9,2995.8,0.755]
[1752543916447,0.7966,2996.7,2995.8,0.755]
[1752543916752,3.33753296,2996.3,2995.8,4.09298499]
[1752543916946,3.33737809,2996.4,2995.9,3.33789258]
[1752543917203,5.188,2996.5,2995.9,0.03337895]
[1752543917404,3.33719852,2996.6,2995.9,3.3712443]
[1752543917405,3.33714954,2996.6,2995.9,3.3712443]
[1752543917607,8.52614954,2996.6,2996.0,3.75031919]
[1752543917906,8.52614954,2996.6,2996.0,3.75035555]
[1752543918105,0.00200001,2996.9,2996.1,3.3376723]
[1752543918424,8.52489665,2996.8,2996.2,3.33747385]
[1752543918612,0.00200001,2996.9,2996.3,3.33744498]
[1752543918904,3.33713882,2996.6,2996.0,0.41262443]
[1752543919069,3.33702873,2996.7,2996.1,3.33758991]
[1752543919266,8.52492321,2996.8,2996.2,3.33747116]
[1752543919676,3.33704559,2996.7,2996.1,3.33762756]
[1752543920101,3.33716032,2996.6,2996.0,3.33773018]
[1752543920304,5.188,2996.8,2995.8,0.755]
[1752543920515,3.33754494,2996.3,2995.8,0.755]
[1752543920885,3.33758081,2996.2,2995.6,3.33818702]
[1752543921116,3.33748965,2996.3,2995.8,3.33800391]
[1752543921319,3.33738809,2996.4,2995.9,3.33785905]
[1752543921519,3.33738809,2996.4,2995.4,0.8189]
[1752543921520,8.52446515,2996.3,2995.4,0.8189]
[1752543921717,5.187,2996.3,2995.9,3.50426791]
[1752543921920,5.187,2996.3,2996.0,0.35042679]
[1752543922124,5.185,2996.3,2996.0,0.35042679]
[1752543923831,5.185,2996.3,2996.0,3.68820265]
[1752543924140,5.185,2996.3,2996.0,0.35042679]
[1752543924290,8.52248323,2996.3,2995.9,0.1664]
[1752543924496,3.33759122,2996.2,2995.9,0.1664]
[1752543924703,5.184,2996.2,2995.9,0.1664]
[1752543925327,5.182,2996.2,2995.9,0.1664]
[1752543925637,5.182,2996.2,2996.1,3.5040723]
[1752543926013,3.50357258,2996.6,2996.1,0.1664]
[1752543926341,5.182,2996.3,2996.1,0.1664]
[1752543927244,0.1664,2996.6,2996.1,0.9489]
[1752543927440,5.181,2996.6,2996.3,3.337395]
[1752543927619,5.181,2996.6,2996.4,0.1664]
[1752543928022,5.181,2996.6,2996.4,3.50364151]
[1752543928220,0.00200001,2996.9,2996.7,3.33690475]
[1752543928419,5.181,2996.8,2996.7,3.33690475]
[1752543928641,0.00200001,2996.9,2996.8,3.33689268]
[1752543929048,5.18200001,2996.9,2996.8,3.33689268]
[1752543929368,5.18200001,2996.9,2996.8,3.50329268]
[1752543929510,0.00200001,2996.9,2996.8,4.26240174]
[1752543929810,0.00200001,2996.9,2996.8,3.50329268]
[1752543931339,0.00200001,2996.9,2996.8,3.5366616]
[1752543932151,0.00200001,2996.9,2996.8,3.50329268]
[1752543934159,0.00200001,2996.9,2996.8,4.27299268]
[1752543937801,0.00200001,2996.9,2996.8,0.1664]
[1752543938015,0.00200001,2996.9,2996.8,3.50329268]
[1752543938374,0.00200001,2996.9,2996.8,0.1664]
[1752543938578,0.76070001,2996.9,2996.0,0.7883]
[1752543938771,0.76070001,2996.9,2996.5,0.1664]
[1752543939596,0.76070001,2996.9,2996.5,3.50355128]
[1752543939777,0.76070001,2996.9,2996.6,3.3370954]
[1752543940175,0.76070001,2996.9,2996.5,3.50357132]
[1752543940393,0.76070001,2996.9,2996.5,0.1664]
[1752543940594,0.76070001,2996.9,2996.6,3.33703877]
[1752543940903,0.00200001,2996.9,2996.8,3.33689268]
[1752543941814,0.00200001,2996.9,2996.8,3.50329268]
[1752543942012,0.00200001,2996.9,2996.8,3.5366616]
[1752543942609,0.00200001,2996.9,2996.8,3.50329268]
[1752543942981,0.00200001,2996.9,2996.8,3.5366616]
[1752543943179,0.00200001,2996.9,2996.8,4.33447209]
[1752543943378,0.00200001,2996.9,2996.8,4.30110317]
[1752543943595,0.00200001,2996.9,2996.8,4.33447209]
[1752543943783,0.00200001,2996.9,2996.8,4.30110317]
[1752543944909,0.00200001,2996.9,2996.8,4.33447209]
[1752543946138,0.00200001,2996.9,2996.8,4.30110317]
[1752543947278,0.00200001,2996.9,2996.8,3.50329268]
[1752543948538,0.00200001,2996.9,2996.8,0.1664]
[1752543948886,0.00200001,2996.9,2996.8,3.50329268]
[1752543949286,0.00200001,2996.9,2996.8,3.5366616]
[1752543949694,0.00200001,2996.9,2996.8,3.50329268]
[1752543950021,0.00200001,2996.9,2996.8,4.73925622]
[1752543951547,0.00200001,2996.9,2996.8,4.77262514]
[1752543951838,0.00200001,2996.9,2996.8,5.53575622]
[1752543951988,0.00200001,2996.9,2996.8,4.73925622]
[1752543952182,0.00200001,2996.9,2996.8,3.50329268]
[1752543952406,0.00200001,2996.9,2996.8,0.1664]
[1752543952610,0.00200001,2996.9,2996.8,3.50329268]
[1752543955262,0.00200001,2996.9,2996.8,0.1664]
[1752543955964,0.00200001,2996.9,2996.5,3.33715049]
[1752543955965,3.67265945,2996.9,2996.5,0.1664]
[1752543956117,3.33711539,2996.6,2996.2,0.1664]
[1752543956515,3.5034571,2996.7,2996.2,0.1664]
[1752543956770,0.1664,2996.7,2996.2,3.50393234]
[1752543957122,3.50347814,2996.7,2996.2,0.1664]
[1752543957328,3.33711755,2996.6,2996.2,0.1664]
[1752543957533,3.50344822,2996.7,2996.2,3.50395321]
[1752543958049,3.50344822,2996.7,2996.2,0.1664]
[1752543958375,3.33715782,2996.6,2996.2,0.1664]
[1752543959250,1.47813153,2996.7,2996.2,0.1664]
[1752543959436,0.1664,2996.7,2996.2,0.1664]
[1752543959642,5.164,2996.6,2996.3,3.33743966]
[1752543960280,0.1664,2996.7,2996.2,0.1664]
[1752543960463,5.16700001,2996.9,2996.3,4.10954075]
[1752543960634,5.16700001,2996.9,2996.4,0.1664]
[1752543961261,5.16700001,2996.9,2996.4,3.50372335]
[1752543961453,5.16700001,2996.9,2996.5,3.33713374]
[1752543961735,0.00200001,2996.9,2996.6,0.1664]
[1752543962054,0.00200001,2996.9,2996.8,3.33689268]
[1752543962460,0.00200001,2996.9,2996.8,3.50329268]
[1752543963268,0.00200001,2996.9,2996.8,0.1664]
[1752543963608,0.76510001,2996.9,2996.4,3.33728088]
[1752543963735,0.76510001,2996.9,2996.4,0.1664]
[1752543963936,0.76510001,2996.9,2996.6,3.33706879]
[1752543964136,0.76510001,2996.9,2996.5,3.3371843]
[1752543964437,4.10192662,2996.9,2996.4,0.1664]
[1752543964636,0.76510001,2996.9,2996.4,3.50367745]
[1752543964835,0.76510001,2996.9,2996.4,0.1664]
[1752543965062,0.76510001,2996.9,2996.6,3.33701824]
[1752543965273,0.76510001,2996.9,2996.4,0.1664]
[1752543965478,5.17000001,2996.9,2996.7,3.33692461]
[1752543966137,5.17000001,2996.9,2996.8,3.33689268]
[1752543966337,5.17000001,2996.9,2996.7,3.33690187]
[1752543966737,5.17000001,2996.9,2996.6,3.50345678]
[1752543967368,5.17000001,2996.9,2996.6,0.1664]
[1752543967569,0.8299,2996.8,2996.2,4.76]
[1752543967815,3.33709463,2996.7,2996.1,3.33762599]
[1752543967989,3.50349463,2996.7,2996.2,3.50392818]
[1752543968385,3.33716218,2996.6,2996.2,0.1664]
[1752543968700,5.167,2996.5,2996.3,3.33737812]
[1752543968885,5.167,2996.5,2996.2,3.50393009]
[1752543970015,5.167,2996.5,2996.3,3.33744735]
[1752543970176,0.1664,2996.7,2996.6,3.33711539]
[1752543970377,5.166,2996.7,2996.6,3.33711539]
[1752543970671,0.00200001,2996.9,2996.7,3.33700403]
[1752543970889,5.165,2996.8,2996.7,3.33700403]
[1752543971427,0.00200001,2996.9,2996.8,3.33689268]
[1752543971611,5.16800001,2996.9,2996.8,3.33489184]
[1752543971918,0.00200001,2996.9,2996.8,3.33489184]
[1752543973926,0.00200001,2996.9,2996.8,4.05208947]
[1752543974132,0.00200001,2996.9,2996.8,4.82498947]
[1752543974292,0.00200001,2996.9,2996.8,4.79162055]
[1752543976507,0.00200001,2996.9,2996.8,4.82498947]
[1752543977649,0.1664,2997.6,2997.5,3.33611342]
[1752543977856,0.8724,2997.9,2997.8,3.33577957]
[1752543978149,0.04,2997.9,2997.8,3.33577957]
[1752543979447,0.04,2997.9,2997.8,3.50217957]
[1752543980226,0.042,2997.9,2997.8,3.50217957]
[1752543983170,0.042,2997.9,2997.8,3.88462731]
[1752543984863,0.042,2997.9,2997.8,3.9179851]
[1752543986274,0.042,2997.9,2997.8,9.82702731]
[1752543987528,0.042,2997.9,2997.8,0.54884774]
[1752543987734,0.042,2997.9,2997.8,3.50217957]
[1752543988399,0.042,2997.9,2997.8,3.53553736]
[1752543988966,0.042,2997.9,2997.8,3.50217957]
[1752543989172,0.042,2997.9,2997.8,8.66517957]
[1752543990451,0.042,2997.9,2997.8,3.50217957]
[1752543991074,0.042,2997.9,2997.8,0.1664]
[1752543991258,0.042,2997.9,2997.8,3.50217957]
[1752543992137,0.042,2997.9,2997.8,0.1664]
[1752543994205,0.042,2997.9,2997.8,3.50217957]